bitfinex/quotes_ETHUSD_20260209
["timestamp","ask_amount","ask_price","bid_price","bid_amount"]
[1770661816043,4.7742525,2121.9,2120.1,7.44801247]
[1770661816044,0.06082867,2121.5,2120.1,7.44801247]
[1770661816244,0.06082867,2121.5,2119.6,1.1794314]
[1770661816245,4.45065469,2121.3,2119.6,1.1794314]
[1770661816552,3.297,2121.4,2120.1,1.17917705]
[1770661816751,0.06082867,2121.1,2119.7,1.17938208]
[1770661816962,0.06082867,2121.3,2119.3,4.71851734]
[1770661816963,0.06082867,2121.0,2119.3,4.71851734]
[1770661817164,0.06082867,2121.0,2119.5,1.17952062]
[1770661817472,0.06082867,2121.3,2119.3,1.17963478]
[1770661817473,1.17857816,2121.2,2119.3,1.17963478]
[1770661817770,1.17857816,2121.2,2119.5,4.21184114]
[1770661817966,0.06082867,2121.1,2119.5,4.15101247]
[1770661818166,1.17857816,2121.2,2119.5,4.15101247]
[1770661818869,0.06082867,2121.1,2119.5,4.15101247]
[1770661819084,0.06082867,2121.1,2119.3,1.17963478]
[1770661819085,0.06082867,2120.9,2119.3,1.17963478]
[1770661819289,4.38982602,2121.1,2119.3,5.39147592]
[1770661819445,1.17857816,2121.2,2119.5,1.17952347]
[1770661819646,1.17857816,2121.2,2119.6,14.71535646]
[1770661820367,1.17857816,2121.2,2119.8,0.5]
[1770661820575,1.23940683,2121.2,2119.8,0.5]
[1770661820772,0.06082867,2121.0,2119.5,1.17952347]
[1770661821273,0.06082867,2121.0,2119.4,4.47553924]
[1770661821580,1.17874487,2120.9,2119.4,4.47553924]
[1770661822250,1.17874487,2120.9,2119.5,4.13359147]
[1770661822551,1.17874487,2120.9,2119.2,10.58176499]
[1770661822755,0.06082867,2120.8,2119.3,1.17959994]
[1770661822957,0.06082867,2120.8,2119.4,1.17957421]
[1770661823351,4.4917033,2120.8,2119.0,4.13359147]
[1770661823557,1.17896722,2120.5,2119.1,1.17974611]
[1770661823755,1.17896722,2120.5,2119.2,4.13359147]
[1770661823961,4.7147321,2121.1,2119.6,4.13359147]
[1770661824152,4.7147321,2121.1,2119.6,14.71535646]
[1770661824865,4.7147321,2121.1,2119.5,0.06082867]
[1770661824866,4.7139118,2121.4,2120.0,4.36716177]
[1770661825579,1.17846705,2121.4,2120.1,1.17918966]
[1770661825887,1.17846705,2121.4,2120.1,5.3736098]
[1770661826375,8.00971459,2121.5,2120.1,5.3736098]
[1770661826376,1.17845155,2121.5,2120.2,4.13359147]
[1770661826579,1.17845155,2121.5,2120.3,4.19442014]
[1770661826877,1.17845155,2121.5,2120.3,4.13359147]
[1770661827078,1.23928022,2121.5,2120.0,1.17920879]
[1770661827246,1.17845155,2121.5,2120.0,1.17920879]
[1770661827650,0.06082867,2121.4,2120.0,1.17920879]
[1770661828258,1.17845155,2121.5,2120.0,1.17920879]
[1770661829374,0.06082867,2121.2,2119.6,1.17942772]
[1770661829567,0.06082867,2121.2,2119.6,1.17946782]
[1770661829568,1.17863372,2121.1,2119.6,1.17946782]
[1770661829763,0.06082867,2121.0,2119.5,5.31307209]
[1770661829960,4.4917033,2120.6,2119.1,1.17972193]
[1770661830153,4.4917033,2120.6,2119.2,1.17966383]
[1770661830365,4.4917033,2120.6,2119.1,4.71897846]
[1770661830366,3.295,2120.5,2119.1,1.17970228]
[1770661830566,0.06082867,2120.4,2119.0,1.17979398]
[1770661831051,0.06082867,2120.2,2118.8,3.05422429]
[1770661831159,0.06082867,2120.0,2118.6,1.17999509]
[1770661831358,0.06082867,2120.0,2118.7,1.17996429]
[1770661831570,4.4917033,2120.2,2118.8,1.17991005]
[1770661831886,1.17918966,2120.1,2118.5,1.18008024]
[1770661832088,1.17918966,2120.1,2118.5,5.31367171]
[1770661832387,1.17918966,2120.1,2118.6,4.19442014]
[1770661833086,1.17918966,2120.1,2119.0,0.001]
[1770661834087,4.4917033,2119.5,2118.1,1.18029775]
[1770661834387,4.4917033,2119.5,2118.2,1.180205]
[1770661834691,0.06082867,2119.1,2117.9,0.001]
[1770661834892,0.06082867,2118.9,2117.9,0.001]
[1770661835183,3.296,2119.0,2117.9,0.001]
[1770661835184,7.72687463,2119.0,2117.9,0.001]
[1770661835361,0.06082867,2118.9,2117.9,0.001]
[1770661835755,1.17991315,2118.8,2117.9,0.001]
[1770661835959,0.06082867,2118.7,2117.9,0.001]
[1770661836189,0.06082867,2118.5,2117.4,0.001]
[1770661836365,0.06082867,2118.1,2117.4,0.001]
[1770661836569,3.35682867,2118.1,2117.4,0.001]
[1770661836988,0.06082867,2117.5,2117.1,0.001]
[1770661837165,10.28123149,2118.0,2116.5,0.001]
[1770661837495,6.15542552,2118.3,2117.1,1.18082696]
[1770661837496,3.296,2118.1,2117.1,1.18082696]
[1770661837666,1.18035882,2118.0,2116.6,1.18113956]
[1770661838561,0.06082867,2118.5,2116.9,4.13359147]
[1770661838562,4.72033343,2118.5,2116.9,4.13359147]
[1770661838792,1.18002454,2118.6,2117.0,0.06082867]
[1770661838961,1.18002454,2118.6,2117.0,4.19442014]
[1770661839600,1.18002454,2118.6,2117.2,4.19442014]
[1770661839892,1.18002454,2118.6,2117.3,1.18074906]
[1770661840686,0.06082867,2118.5,2116.9,4.72384178]
[1770661840985,0.06082867,2118.5,2117.1,1.18082816]
[1770661841156,0.06082867,2117.9,2116.3,4.13459147]
[1770661841360,0.06082867,2117.9,2116.7,1.18105227]
[1770661841361,3.35782867,2117.9,2116.7,1.18105227]
[1770661841602,3.297,2117.9,2116.7,1.18103437]
[1770661841767,1.18052604,2117.7,2116.5,0.001]
[1770661841966,0.06082867,2117.6,2116.5,0.001]
[1770661843064,1.18052604,2117.7,2116.5,0.001]
[1770661843595,0.06082867,2117.0,2116.3,0.001]
[1770661843912,1.18102796,2116.8,2116.0,0.001]
[1770661844189,0.06082867,2116.7,2115.7,0.001]
[1770661844361,0.06082867,2116.3,2115.7,0.001]
[1770661844793,0.06082867,2116.1,2115.5,0.001]
[1770661844958,3.298,2116.0,2115.5,0.001]
[1770661845163,3.298,2116.0,2115.4,0.001]
[1770661845787,1.18153031,2115.9,2115.4,0.001]
[1770661845968,1.24235898,2115.9,2115.2,0.001]
[1770661846184,0.06082867,2115.7,2115.0,0.001]
[1770661846669,1.24235898,2115.9,2115.0,0.001]
[1770661846868,1.18153031,2115.9,2115.0,0.001]
[1770661847101,4.48053031,2115.9,2115.0,0.001]
[1770661847291,4.72448935,2116.7,2116.5,0.001]
[1770661847500,4.0,2116.6,2115.2,4.29436384]
[1770661847679,4.72448935,2116.7,2115.2,4.29436384]
[1770661847875,1.18097217,2116.9,2115.6,4.29536384]
[1770661848411,8.02275397,2117.0,2115.6,4.29536384]
[1770661848412,4.47994772,2117.0,2115.6,4.29536384]
[1770661848781,4.47994772,2117.0,2115.7,0.06082867]
[1770661849101,4.47994772,2117.0,2115.8,4.29436384]
[1770661849895,4.47994772,2117.0,2115.6,0.001]
[1770661850096,4.54077639,2117.0,2115.6,0.001]
[1770661850886,4.47994772,2117.0,2115.6,4.29536384]
[1770661851992,4.47994772,2117.0,2115.7,5.47600584]
[1770661852602,4.47994772,2117.0,2115.8,4.29436384]
[1770661852975,3.299,2117.0,2115.8,4.29436384]
[1770661853178,3.299,2117.0,2115.8,4.35519251]
[1770661853389,4.72155921,2118.0,2116.2,4.29436384]
[1770661853610,4.72155921,2118.0,2116.5,4.29436384]
[1770661854109,4.72155921,2118.0,2116.7,4.29436384]
[1770661854814,4.72115704,2118.2,2116.7,4.29436384]
[1770661855109,4.48019318,2118.3,2116.9,4.29436384]
[1770661855713,3.3,2118.3,2117.1,4.29436384]
[1770661855912,4.4801968,2118.3,2117.2,1.18080483]
[1770661857588,4.4801968,2118.3,2117.0,4.7234821]
[1770661857802,4.4801968,2118.3,2117.1,1.18085628]
[1770661858005,4.4801968,2118.3,2116.9,4.72344244]
[1770661858617,4.47728169,2118.3,2116.9,4.72344244]
[1770661858821,4.47728169,2118.3,2116.9,9.01780628]
[1770661859125,4.47728169,2118.3,2117.0,4.29436384]
[1770661859491,3.29708489,2118.3,2117.0,4.29436384]
[1770661859693,0.002,2118.9,2117.7,4.29436384]
[1770661859911,0.002,2118.9,2117.9,5.4747784]
[1770661860426,0.002,2118.9,2118.0,4.29436384]
[1770661860922,0.002,2118.3,2118.0,4.29436384]
[1770661861093,0.002,2118.3,2117.9,1.18041456]
[1770661861094,0.002,2118.9,2118.2,4.29436384]
[1770661861295,0.002,2118.9,2118.1,0.06082867]
[1770661861296,0.002,2118.9,2118.0,0.1024]
[1770661861733,0.002,2119.1,2118.3,4.29436384]
[1770661862097,0.002,2119.1,2117.8,9.01602208]
[1770661862311,0.002,2119.1,2118.3,1.18018355]
[1770661862516,0.002,2119.1,2117.8,4.29436384]
[1770661862708,0.002,2119.1,2118.1,1.18026528]
[1770661862919,0.002,2119.1,2118.1,4.72119694]
[1770661863113,0.002,2119.1,2118.3,1.18016718]
[1770661864127,0.002,2119.1,2118.2,9.01513049]
[1770661865797,4.71787129,2119.8,2118.2,9.01513049]
[1770661865798,0.002,2120.0,2118.7,4.29436384]
[1770661866025,0.002,2120.0,2118.8,0.06082867]
[1770661866224,0.002,2120.0,2119.3,4.29436384]
[1770661866735,3.299,2121.1,2119.5,4.35519251]
[1770661866736,1.17874487,2121.0,2119.5,4.35519251]
[1770661866933,1.17874487,2121.0,2119.7,4.35519251]
[1770661867446,1.18055263,2121.3,2120.0,0.06082867]
[1770661867628,1.18055263,2121.3,2120.0,4.29436384]
[1770661867801,1.18055263,2121.3,2119.5,4.35519251]
[1770661868007,1.18055263,2121.3,2119.7,1.17941218]
[1770661868227,0.06082867,2121.0,2119.5,7.59336384]
[1770661868416,0.06082867,2120.8,2119.5,1.17948526]
[1770661868637,0.06082867,2120.8,2118.9,0.2335703]
[1770661868638,0.06082867,2120.3,2118.6,4.29436384]
[1770661869135,0.06082867,2120.1,2118.9,1.17985235]
[1770661869323,0.06082867,2120.1,2118.8,1.17987914]
[1770661869638,0.06082867,2120.3,2118.8,1.17987733]
[1770661869813,0.06082867,2120.1,2118.7,1.179965]
[1770661870014,1.17924528,2120.0,2118.5,4.7202285]
[1770661870440,0.06082867,2119.9,2118.5,1.18008024]
[1770661870648,1.17924528,2120.0,2118.5,1.18008024]
[1770661871043,1.17924528,2120.0,2118.5,5.47444408]
[1770661871622,1.17924528,2120.0,2118.6,4.29436384]
[1770661872347,4.71542415,2120.8,2119.3,4.29436384]
[1770661872853,4.71453842,2121.1,2119.5,4.29436384]
[1770661873351,4.71453842,2121.1,2119.4,0.29439897]
[1770661873352,0.002,2120.4,2119.6,4.35519251]
[1770661874232,0.002,2120.4,2119.7,1.17941218]
[1770661874432,0.002,2120.4,2119.7,5.47377602]
[1770661874821,0.002,2120.6,2119.9,4.35519251]
[1770661875568,0.002,2120.6,2120.1,4.21139562]
[1770661875724,4.71625145,2121.3,2120.1,4.21139562]
[1770661875725,1.18056625,2121.3,2120.1,4.21139562]
[1770661875928,0.002,2121.3,2120.3,4.21139562]
[1770661876248,0.002,2121.3,2120.4,1.17902282]
[1770661877157,0.002,2121.3,2120.5,0.06082867]
[1770661878021,0.002,2121.3,2120.5,4.15056695]
[1770661878439,0.002,2121.3,2120.6,1.17891162]
[1770661878834,0.002,2121.3,2120.5,1.17892775]
[1770661879032,0.002,2121.3,2120.5,1.17896464]
[1770661880125,1.19624166,2122.4,2121.2,4.38181827]
[1770661880444,0.01828727,2122.4,2121.4,1.17846705]
[1770661880756,0.01828727,2122.4,2121.6,0.06082867]
[1770661881870,1.19621515,2122.4,2121.2,1.17854746]
[1770661882070,1.19621515,2122.4,2121.2,1.17857533]
[1770661882282,1.19621515,2122.4,2121.2,1.17853798]
[1770661882587,1.19621515,2122.4,2121.0,1.178685]
[1770661882768,1.19621515,2122.4,2121.0,1.17868664]
[1770661883078,0.06082867,2122.1,2120.7,1.17884733]
[1770661883379,0.06082867,2122.1,2120.6,1.17887814]
[1770661883674,0.06082867,2121.9,2120.4,7.6159896]
[1770661883885,0.06082867,2121.7,2120.3,1.17907646]
[1770661884051,4.14493574,2121.9,2120.1,4.71661833]
[1770661884387,1.17835595,2121.6,2120.0,4.71688188]
[1770661884547,1.17835595,2121.6,2120.0,4.77771055]
[1770661884744,1.17835595,2121.6,2120.2,0.5]
[1770661885143,1.17835595,2121.6,2120.0,9.09870015]
[1770661885453,1.23918462,2121.6,2120.0,9.03787148]
[1770661885650,4.08410707,2121.5,2119.9,1.17928336]
[1770661885851,1.17835595,2121.6,2120.0,4.4233896]
[1770661886057,1.18034349,2121.7,2120.5,4.38181827]
[1770661886461,0.002,2121.7,2120.6,1.17891162]
[1770661886658,0.002,2121.7,2120.4,1.17901108]
[1770661886867,0.002,2121.7,2120.5,1.17896069]
[1770661887286,0.002,2121.7,2120.5,5.49995029]
[1770661887992,0.002,2121.7,2120.5,1.17896069]
[1770661888596,0.002,2121.7,2120.3,4.4233896]
[1770661888749,0.002,2121.7,2120.3,4.48421827]
[1770661889470,0.002,2121.7,2120.5,4.48421827]
[1770661889671,0.002,2121.7,2120.9,4.38181827]
[1770661890263,0.002,2121.7,2121.0,4.3209896]
[1770661890469,0.002,2121.7,2121.2,1.17857816]
[1770661890781,0.002,2121.9,2121.1,1.1786322]
[1770661891365,0.002,2121.9,2121.1,1.17863182]
[1770661891760,0.002,2121.9,2121.0,1.1786622]
[1770661891962,0.002,2121.9,2121.1,1.17862973]
[1770661892779,0.002,2121.9,2120.9,1.17874487]
[1770661893470,0.002,2121.9,2120.6,1.1788821]
[1770661893655,4.14493574,2121.8,2120.0,3.294]
[1770661893854,4.14493574,2121.8,2120.3,1.17905644]
[1770661893855,0.06082867,2121.6,2120.3,1.17905644]
[1770661894284,4.14493574,2121.6,2120.1,1.17914777]
[1770661894589,4.14493574,2121.6,2120.1,1.17918426]
[1770661894789,1.1784115,2121.5,2120.1,1.17918426]
[1770661894968,1.1784115,2121.5,2120.0,3.294]
[1770661894969,4.14493574,2121.4,2120.0,3.294]
[1770661895287,4.08410707,2121.0,2119.4,3.294]
[1770661895454,4.08410707,2121.0,2119.7,1.1793874]
[1770661895654,4.08410707,2121.0,2119.4,3.294]
[1770661895859,4.0,2121.3,2120.1,4.3209896]
[1770661896158,4.0,2121.3,2120.0,1.1792427]
[1770661896382,5.14639004,2121.2,2119.7,1.1794087]
[1770661896689,5.08556137,2121.1,2119.3,12.39435597]
[1770661896990,1.17868929,2121.0,2120.2,0.001]
[1770661898490,4.08410707,2120.9,2120.2,0.001]
[1770661898994,1.23962912,2120.8,2120.2,0.001]
[1770661899290,1.17880045,2120.8,2120.0,0.001]
[1770661900391,1.00325487,2120.7,2120.0,0.001]
[1770661900693,1.23962912,2120.8,2120.0,0.001]
[1770661900991,1.17891162,2120.6,2120.0,0.001]
[1770661901670,1.23974029,2120.6,2120.0,0.001]
[1770661902012,0.06082867,2120.4,2119.1,0.001]
[1770661902182,4.29864051,2120.3,2119.1,0.001]
[1770661902496,1.00326987,2120.2,2119.1,0.001]
[1770661902678,3.295,2120.3,2119.1,1.18071557]
[1770661902873,1.17918966,2120.1,2119.1,0.001]
[1770661903582,1.00280425,2120.0,2119.1,0.001]
[1770661903787,1.17918966,2120.1,2119.1,0.001]
[1770661903999,1.00306704,2120.0,2119.1,0.001]
[1770661904164,0.06082867,2120.0,2119.1,0.001]
[1770661904572,0.06082867,2119.8,2119.1,0.001]
[1770661905067,1.17941218,2119.7,2118.4,1.18110975]
[1770661905398,1.17941218,2119.7,2118.4,0.001]
[1770661905972,0.06082867,2119.6,2118.4,0.001]
[1770661906180,0.06082867,2119.4,2118.4,0.001]
[1770661907304,1.17963478,2119.3,2118.4,0.001]
[1770661908397,4.47556352,2119.5,2118.4,4.21442461]
[1770661908716,1.17918966,2120.1,2118.8,4.21342461]
[1770661909283,1.17868929,2121.0,2119.2,4.27425328]
[1770661909499,3.296,2120.9,2119.5,4.21342461]
[1770661910712,3.296,2120.9,2119.7,4.21342461]
[1770661910917,1.17846705,2121.4,2119.8,4.27425328]
[1770661911104,1.1804303,2121.5,2120.2,4.21342461]
[1770661911411,0.002,2121.5,2120.3,5.39250304]
[1770661911615,0.002,2121.5,2120.7,4.21342461]
[1770661912119,0.002,2121.9,2121.1,0.06082867]
[1770661912336,1.17789336,2122.5,2121.3,4.50782358]
[1770661912628,1.17993332,2122.4,2120.9,0.1024]
[1770661912822,1.17993332,2122.4,2120.4,4.27425328]
[1770661912823,5.27513584,2122.4,2120.4,4.27425328]
[1770661913121,0.06082867,2122.2,2120.4,4.27425328]
[1770661913318,1.17807831,2122.1,2120.5,1.17896722]
[1770661913521,1.17807831,2122.1,2120.6,4.21342461]
[1770661914020,1.17807831,2122.1,2120.6,4.27425328]
[1770661914706,1.17807831,2122.1,2120.6,4.21342461]
[1770661915103,1.17807831,2122.1,2120.9,4.21342461]
[1770661915304,0.002,2122.4,2121.0,1.17868929]
[1770661915683,0.002,2122.4,2121.0,1.23951796]
[1770661915915,0.002,2122.4,2121.2,4.27425328]
[1770661916338,0.002,2122.4,2121.7,0.06082867]
[1770661916495,0.002,2122.6,2122.0,4.27425328]
[1770661916839,0.002,2122.8,2122.0,4.27425328]
[1770661917017,3.295,2124.1,2122.2,4.27425328]
[1770661917018,1.17730218,2123.5,2122.2,4.27425328]
[1770661917317,3.295,2124.1,2122.3,1.17796729]
[1770661917318,4.70829666,2124.0,2122.3,1.17796729]
[1770661917487,4.76912533,2124.0,2122.3,1.17796729]
[1770661917682,4.70829666,2124.0,2122.3,1.17796729]
[1770661917913,4.70829666,2124.0,2122.4,4.27425328]
[1770661918118,0.06082867,2124.2,2122.6,4.21342461]
[1770661918336,0.06082867,2124.0,2122.2,1.17802227]
[1770661918488,0.06082867,2124.0,2122.1,4.21342461]
[1770661918489,0.06082867,2123.6,2122.1,4.21342461]
[1770661918689,3.35582867,2123.6,2122.1,1.17803415]
[1770661918991,3.295,2123.6,2122.2,1.17802001]
[1770661919517,1.17730162,2123.5,2122.0,1.17813383]
[1770661919685,1.17730162,2123.5,2122.1,4.27425328]
[1770661920135,1.17730162,2123.5,2122.1,4.21342461]
[1770661920294,1.23813029,2123.5,2122.1,4.21342461]
[1770661920842,0.06082867,2123.3,2122.0,1.17813383]
[1770661920994,1.23813029,2123.5,2121.9,4.71275206]
[1770661920995,1.23813029,2123.5,2121.9,1.17816772]
[1770661921318,1.17730162,2123.5,2121.9,5.39159233]
[1770661921492,1.17730162,2123.5,2122.0,4.21342461]
[1770661921820,0.06082867,2123.4,2122.0,4.21342461]
[1770661922194,1.17730162,2123.5,2122.0,4.21342461]
[1770661922395,1.17719075,2123.7,2122.4,4.21342461]
[1770661922626,4.710763,2123.8,2122.5,0.2335703]
[1770661922627,1.17915996,2123.8,2122.5,0.2335703]
[1770661922928,0.002,2123.8,2122.8,4.27425328]
[1770661923109,0.002,2123.8,2123.0,4.27425328]
[1770661923429,0.002,2124.0,2123.4,5.39078167]
[1770661923931,0.002,2124.9,2123.7,4.21342461]
[1770661924223,0.002,2124.9,2123.9,4.21342461]
[1770661924611,0.002,2124.9,2123.5,0.1024]
[1770661924807,0.002,2124.9,2123.4,4.21342461]
[1770661925528,0.002,2124.9,2123.6,4.44699491]
[1770661925728,0.002,2124.9,2123.7,4.21342461]
[1770661926396,7.32637385,2124.8,2123.4,1.17735438]
[1770661926609,3.292,2124.8,2123.4,1.17735438]
[1770661926795,3.292,2124.8,2123.4,1.17735198]
[1770661927009,0.002,2124.9,2123.9,4.21342461]
[1770661927206,1.31917453,2125.5,2124.3,4.27425328]
[1770661927393,0.142975,2125.5,2124.9,4.21342461]
[1770661927829,1.31918787,2125.5,2124.4,1.17680286]
[1770661928122,1.31918787,2125.5,2124.4,5.39022747]
[1770661928320,4.76424149,2126.2,2124.4,5.39022747]
[1770661928321,1.17547489,2127.0,2125.2,4.21342461]
[1770661928492,1.17547489,2127.0,2125.2,7.50542461]
[1770661928685,1.17547489,2127.0,2124.9,10.26757133]
[1770661928686,0.06082867,2126.6,2124.8,0.06082867]
[1770661928891,0.06082867,2126.6,2124.8,3.35182867]
[1770661929119,0.06082867,2126.8,2124.9,4.21342461]
[1770661929325,1.17553016,2126.7,2125.0,1.17647058]
[1770661929504,1.17553016,2126.7,2125.0,4.21342461]
[1770661929998,1.17553016,2126.7,2124.9,1.17648536]
[1770661929999,1.17553016,2126.7,2125.1,4.50782358]
[1770661930210,1.17553016,2126.7,2125.3,4.21342461]
[1770661930396,0.06082867,2126.6,2124.9,1.17648536]
[1770661930591,0.06082867,2126.4,2124.6,0.06082867]
[1770661930796,0.06082867,2126.0,2124.6,1.17666411]
[1770661931026,3.35182867,2126.1,2124.8,1.1765534]
[1770661931201,0.06082867,2125.9,2124.3,3.291]
[1770661931406,0.06082867,2125.7,2124.3,4.46784961]
[1770661931601,1.17602784,2125.8,2124.3,4.46784961]
[1770661931817,1.17602784,2125.8,2124.4,4.21342461]
[1770661932016,1.1757513,2126.3,2124.6,4.27425328]
[1770661932326,0.06082867,2126.2,2124.6,4.21342461]
[1770661932915,0.06082867,2126.1,2124.3,1.27924961]
[1770661933138,0.06082867,2125.7,2124.3,1.17685716]
[1770661933311,1.17608317,2125.7,2124.2,4.70761918]
[1770661933625,1.23691184,2125.7,2124.2,1.17691366]
[1770661934029,1.17608317,2125.7,2124.2,1.17691366]
[1770661934525,1.17608317,2125.7,2124.5,4.21342461]
[1770661935528,4.76716136,2126.0,2124.0,4.21969099]
[1770661935698,0.06082867,2125.6,2124.1,1.17696754]
[1770661935897,3.29,2125.7,2124.0,4.28051966]
[1770661936099,0.06282867,2126.0,2124.5,5.39641149]
[1770661936323,0.002,2126.0,2124.5,5.39641149]
[1770661936526,4.22705168,2125.6,2123.7,4.21969099]
[1770661936725,0.06082867,2125.3,2123.7,4.21969099]
[1770661936922,3.34982867,2125.3,2123.8,1.17709581]
[1770661937103,3.34982867,2125.3,2123.8,4.70841513]
[1770661937310,0.06082867,2125.2,2123.7,5.396839]
[1770661937509,1.23718854,2125.2,2123.6,0.001]
[1770661937821,1.17635987,2125.2,2123.6,0.001]
[1770661938016,1.17635987,2125.2,2123.6,4.22069099]
[1770661939499,4.70543948,2125.3,2123.7,1.17719075]
[1770661939700,4.70543948,2125.3,2123.9,4.13889975]
[1770661941015,4.70543948,2125.3,2123.8,0.1024]
[1770661941016,4.76626815,2125.3,2123.8,0.1024]
[1770661941204,0.06082867,2125.2,2123.6,1.17821415]
[1770661941404,0.06082867,2125.0,2123.6,1.17824518]
[1770661941600,1.17652595,2124.9,2123.6,1.17824518]
[1770661941901,1.17652595,2124.9,2123.6,0.001]
[1770661942107,1.17652595,2124.9,2123.6,4.03749975]
[1770661942907,1.17652595,2124.9,2123.7,4.19972842]
[1770661943146,4.7046734,2125.6,2123.7,4.19972842]
[1770661943147,1.17619383,2125.5,2123.7,4.19972842]
[1770661943444,1.17619383,2125.5,2123.9,4.03649975]
[1770661943603,4.7046734,2125.6,2124.1,4.03649975]
[1770661944010,4.7046734,2125.6,2124.1,4.09732842]
[1770661944222,1.17597252,2125.9,2124.3,4.09732842]
[1770661944716,1.17597252,2125.9,2124.7,4.03649975]
[1770661945540,0.002,2126.0,2124.8,5.21308107]
[1770661945745,0.002,2126.0,2124.9,4.03649975]
[1770661946242,0.002,2126.0,2124.7,1.17663392]
[1770661946446,0.002,2126.0,2124.6,1.17668512]
[1770661946746,0.002,2126.0,2124.5,5.21320797]
[1770661946946,0.06082867,2125.9,2124.5,5.21320797]
[1770661947145,0.06082867,2125.9,2124.3,0.1024]
[1770661947330,0.06082867,2125.4,2123.9,1.17705755]
[1770661947640,0.06082867,2125.2,2123.6,5.214703]
[1770661948140,0.06082867,2125.2,2124.1,0.001]
[1770661948319,0.06082867,2125.0,2124.1,0.001]
[1770661948933,0.06082867,2124.8,2124.1,0.001]
[1770661949126,0.06082867,2124.8,2123.6,0.001]
[1770661950107,1.1766367,2124.7,2123.6,0.001]
[1770661950730,0.06082867,2124.3,2123.6,0.001]
[1770661950912,0.06082867,2124.1,2123.6,0.001]
[1770661951111,0.06082867,2124.1,2122.5,8.50433241]
[1770661951356,0.06082867,2124.1,2122.5,7.32649975]
[1770661951516,3.289,2124.3,2123.0,4.71029123]
[1770661951720,1.00729521,2124.2,2123.1,1.17749226]
[1770661951932,3.289,2124.3,2123.0,1.17754447]
[1770661952137,2.18421323,2124.2,2122.9,4.03649975]
[1770661952321,1.17691366,2124.2,2122.9,4.03649975]
[1770661953827,4.70765464,2124.6,2123.2,0.06082867]
[1770661953828,4.70676972,2124.6,2123.2,0.06082867]
[1770661954150,1.17647058,2125.0,2123.4,5.21385681]
[1770661954446,0.06082867,2124.8,2123.3,1.17740146]
[1770661954638,1.00816323,2124.7,2123.3,1.17740146]
[1770661954829,0.06082867,2124.8,2123.3,1.17740146]
[1770661955016,1.00808657,2124.7,2123.3,1.17740146]
[1770661955220,6.29393946,2125.0,2123.3,1.17740146]
[1770661955520,1.17647058,2125.0,2123.8,4.03649975]
[1770661955715,4.70715831,2125.4,2124.2,4.03649975]
[1770661955716,1.17827407,2125.4,2124.2,4.03649975]
[1770661955924,1.17825525,2125.4,2124.2,4.03649975]
[1770661956221,0.002,2125.4,2124.4,4.03649975]
[1770661957960,0.002,2125.4,2124.2,1.17686958]
[1770661958323,0.002,2125.4,2124.3,4.37247005]
[1770661958557,1.17791961,2126.0,2124.8,4.37247005]
[1770661958755,1.17792058,2126.0,2124.9,4.03649975]
[1770661958962,0.002,2126.0,2124.9,4.03649975]
[1770661959256,0.002,2126.0,2125.1,4.09732842]
[1770661959434,0.002,2126.2,2125.3,4.09732842]
[1770661959639,0.002,2126.2,2125.5,4.03649975]
[1770661960232,0.002,2126.2,2125.6,1.1761385]
[1770661960558,0.002,2126.5,2125.7,4.03649975]
[1770661960856,4.7304013,2127.1,2125.7,4.03649975]
[1770661960857,1.17539025,2127.0,2125.7,4.03649975]
[1770661961037,1.20448419,2127.1,2125.9,4.03649975]
[1770661961559,1.22918058,2127.9,2126.4,4.27007005]
[1770661961758,2.40366145,2128.7,2127.3,4.27007005]
[1770661961934,4.69807308,2128.6,2126.8,4.03649975]
[1770661962257,4.69807308,2128.6,2127.1,4.09732842]
[1770661962258,1.17455481,2128.5,2127.1,4.09732842]
[1770661962483,1.17455481,2128.5,2127.1,0.06082867]
[1770661962660,1.17455481,2128.5,2126.9,0.06082867]
[1770661962835,1.17455481,2128.5,2126.9,1.23623469]
[1770661963231,1.17455481,2128.5,2127.1,0.06082867]
[1770661963461,1.17455481,2128.5,2127.1,4.09732842]
[1770661964028,1.23538348,2128.5,2126.7,0.06082867]
[1770661964361,5.00201444,2128.5,2126.7,1.17552552]
[1770661964560,1.17455481,2128.5,2126.8,4.09732842]
[1770661965365,1.17455481,2128.5,2127.1,4.30882179]
[1770661965550,1.17455481,2128.5,2127.2,7.42308016]
[1770661965865,1.17455481,2128.5,2127.2,7.36225149]
[1770661966258,4.69814423,2128.7,2127.2,7.36225149]
[1770661966460,0.06082867,2128.6,2126.7,4.07525149]
[1770661966661,0.06082867,2128.4,2126.9,1.17539429]
[1770661967355,0.06082867,2128.4,2126.9,1.17538869]
[1770661967768,0.06082867,2128.4,2126.7,5.25073996]
[1770661968069,0.06082867,2128.4,2126.5,3.3894]
[1770661968256,1.17464643,2128.3,2126.7,4.80443716]
[1770661968458,1.17464643,2128.3,2127.1,0.2335703]
[1770661968656,1.17426021,2129.0,2127.2,0.06082867]
[1770661968859,0.06082867,2128.7,2127.0,0.2335703]
[1770661969073,0.01458164,2128.8,2127.1,4.13608016]
[1770661969262,0.01458164,2128.8,2127.6,4.07525149]
[1770661969643,0.01458164,2128.8,2127.4,0.06082867]
[1770661969848,0.01458164,2128.8,2127.2,0.1024]
[1770661970373,1.1744257,2128.7,2127.3,1.1751986]
[1770661970569,1.1744257,2128.7,2126.8,0.06082867]
[1770661970870,0.06082867,2128.6,2127.1,1.17530909]
[1770661971042,0.06082867,2128.6,2126.9,1.17537501]
[1770661971374,4.03927356,2128.4,2126.6,3.286]
[1770661971571,3.286,2128.6,2127.1,1.1752567]
[1770661971807,3.286,2128.6,2127.1,1.1752788]
[1770661971951,3.286,2128.6,2127.0,1.17532652]
[1770661972143,0.06082867,2128.1,2126.6,3.286]
[1770661972362,4.69924812,2128.1,2126.6,3.286]
[1770661972570,1.17481203,2128.0,2126.6,4.46158533]
[1770661972772,1.17481203,2128.0,2126.9,0.06082867]
[1770661973146,1.17481203,2128.0,2126.6,3.286]
[1770661973345,1.17481203,2128.0,2126.5,1.17560187]
[1770661973570,1.17481203,2128.0,2126.4,1.17565489]
[1770661973875,1.17481203,2128.0,2126.6,1.17557882]
[1770661974056,1.17481203,2128.0,2126.7,4.07525149]
[1770661974257,4.69924812,2128.3,2127.0,0.1024]
[1770661974258,4.69878825,2128.3,2127.0,0.1024]
[1770661974584,0.002,2128.6,2127.5,4.13608016]
[1770661975165,0.002,2128.6,2127.7,4.13608016]
[1770661976078,1.14296004,2128.8,2127.7,4.13608016]
[1770661976570,1.17409477,2129.3,2127.7,1.17494245]